[Event "Titled Tuesday Blitz June 6 Early 2023"]
[White "a-z30"]
[Black "Amitpal, Singh"]
[BlackFideId "5012899"]
[WhiteElo "2393"]
[BlackElo "2107"]
[Result "0-1"]
[Round "4"]
[TimeControl "180+2"]
[Date "2023.06.06"]
[WhiteClock "0:00:01"]
[BlackClock "0:00:24"]
[Board "184"]

1. d3 {[%clk 0:02:58]}  d5 {[%clk 0:02:58]} 2. Nf3 {[%clk 0:02:58]}  Nf6 {[%clk 0:02:52]} 3. g3 {[%clk 0:02:58]}  Nc6 {[%clk 0:02:51]} 4. Bg2 {[%clk 0:02:58]}  e5 {[%clk 0:02:51]} 5. O-O {[%clk 0:02:59]}  Bc5 {[%clk 0:02:42]} 6. Nxe5 {[%clk 0:02:58]}  Bxf2+ {[%clk 0:02:38]} 7. Rxf2 {[%clk 0:02:57]}  Nxe5 {[%clk 0:02:39]} 8. h3 {[%clk 0:02:57]}  h6 {[%clk 0:02:38]} 9. Nd2 {[%clk 0:02:32]}  O-O {[%clk 0:02:33]} 10. Nf3 {[%clk 0:02:32]}  Ng6 {[%clk 0:02:29]} 11. Nd4 {[%clk 0:01:24]}  Qd6 {[%clk 0:02:25]} 12. Rf3 {[%clk 0:00:57]}  Qb6 {[%clk 0:02:18]} 13. e3 {[%clk 0:00:54]}  c5 {[%clk 0:02:15]} 14. Nf5 {[%clk 0:00:53]}  Bxf5 {[%clk 0:02:16]} 15. Rxf5 {[%clk 0:00:53]}  Qe6 {[%clk 0:02:13]} 16. Qf3 {[%clk 0:00:48]}  Rfe8 {[%clk 0:02:04]} 17. Bd2 {[%clk 0:00:47]}  Rad8 {[%clk 0:02:02]} 18. Rf1 {[%clk 0:00:45]}  Ne5 {[%clk 0:01:56]} 19. Qf4 {[%clk 0:00:38]}  Ng6 {[%clk 0:01:55]} 20. Qf2 {[%clk 0:00:36]}  b6 {[%clk 0:01:48]} 21. g4 {[%clk 0:00:33]}  Ne7 {[%clk 0:01:42]} 22. Rf3 {[%clk 0:00:21]}  d4 {[%clk 0:01:31]} 23. e4 {[%clk 0:00:20]}  Nh7 {[%clk 0:01:17]} 24. Qg3 {[%clk 0:00:18]}  Qxa2 {[%clk 0:01:04]} 25. h4 {[%clk 0:00:16]}  Rf8 {[%clk 0:00:58]} 26. Bh3 {[%clk 0:00:11]}  Qxb2 {[%clk 0:00:56]} 27. h5 {[%clk 0:00:11]}  Qxc2 {[%clk 0:00:55]} 28. R3f2 {[%clk 0:00:11]}  Qb3 {[%clk 0:00:49]} 29. g5 {[%clk 0:00:10]}  Nxg5 {[%clk 0:00:45]} 30. Bxg5 {[%clk 0:00:11]}  hxg5 {[%clk 0:00:45]} 31. Qxg5 {[%clk 0:00:11]}  f6 {[%clk 0:00:43]} 32. Be6+ {[%clk 0:00:09]}  Qxe6 {[%clk 0:00:42]} 33. Qg3 {[%clk 0:00:08]}  Kf7 {[%clk 0:00:36]} 34. Rg2 {[%clk 0:00:06]}  Rg8 {[%clk 0:00:35]} 35. e5 {[%clk 0:00:04]}  f5 {[%clk 0:00:32]} 36. Qg5 {[%clk 0:00:03]}  Qh6 {[%clk 0:00:27]} 37. Qh4 {[%clk 0:00:02]}  Qe3+ {[%clk 0:00:25]} 38. Kh1 {[%clk 0:00:01]}  Qxe5 {[%clk 0:00:25]} 39. Rgf2 {[%clk 0:00:01]}  Qf6 {[%clk 0:00:24]} 0-1


[Site "https://www.chess.com"]

[Event "Titled Tuesday Blitz June 6 Early 2023"]
[White "Ruiz Aguilar, Pablo Alexander"]
[Black "Floresvillar Gonzalez, Luis Migu"]
[WhiteFideId "4401352"]
[BlackFideId "5100542"]
[WhiteElo "2111"]
[BlackElo "2040"]
[Result "1/2-1/2"]
[Round "4"]
[TimeControl "180+2"]
[Date "2023.06.06"]
[WhiteClock "0:01:12"]
[BlackClock "0:00:36"]
[Board "185"]

1. e4 {[%clk 0:03:00]}  e6 {[%clk 0:02:59]} 2. d4 {[%clk 0:02:59]}  d5 {[%clk 0:02:59]} 3. e5 {[%clk 0:03:00]}  c5 {[%clk 0:02:59]} 4. c3 {[%clk 0:03:00]}  Nc6 {[%clk 0:02:59]} 5. Nf3 {[%clk 0:03:01]}  Qb6 {[%clk 0:02:58]} 6. Be2 {[%clk 0:03:02]}  Bd7 {[%clk 0:02:58]} 7. O-O {[%clk 0:03:01]}  cxd4 {[%clk 0:02:57]} 8. cxd4 {[%clk 0:03:01]}  Nge7 {[%clk 0:02:57]} 9. Nc3 {[%clk 0:03:00]}  Nf5 {[%clk 0:02:56]} 10. Na4 {[%clk 0:03:01]}  Qc7 {[%clk 0:02:55]} 11. g4 {[%clk 0:02:56]}  Nfe7 {[%clk 0:02:45]} 12. Be3 {[%clk 0:02:54]}  h5 {[%clk 0:02:43]} 13. h3 {[%clk 0:02:49]}  hxg4 {[%clk 0:02:41]} 14. hxg4 {[%clk 0:02:50]}  Ng6 {[%clk 0:02:22]} 15. Rc1 {[%clk 0:02:51]}  Nh4 {[%clk 0:02:16]} 16. Nxh4 {[%clk 0:02:45]}  Rxh4 {[%clk 0:02:15]} 17. Kg2 {[%clk 0:02:45]}  Be7 {[%clk 0:02:11]} 18. Rh1 {[%clk 0:02:40]}  Rxh1 {[%clk 0:02:08]} 19. Qxh1 {[%clk 0:02:40]}  O-O-O {[%clk 0:02:08]} 20. Qh7 {[%clk 0:02:34]}  Bf8 {[%clk 0:01:56]} 21. Nc5 {[%clk 0:02:28]}  Kb8 {[%clk 0:01:55]} 22. Nxd7+ {[%clk 0:02:23]}  Qxd7 {[%clk 0:01:50]} 23. Bb5 {[%clk 0:02:17]}  Rc8 {[%clk 0:01:50]} 24. Qg8 {[%clk 0:01:50]}  Qe8 {[%clk 0:01:31]} 25. Bxc6 {[%clk 0:01:48]}  Rxc6 {[%clk 0:01:30]} 26. Rxc6 {[%clk 0:01:48]}  bxc6 {[%clk 0:01:30]} 27. b4 {[%clk 0:01:46]}  a6 {[%clk 0:01:28]} 28. Bd2 {[%clk 0:01:35]}  Qe7 {[%clk 0:00:49]} 29. a3 {[%clk 0:01:28]}  Kb7 {[%clk 0:00:46]} 30. Bg5 {[%clk 0:01:23]}  Qxg5 {[%clk 0:00:44]} 31. Qxf8 {[%clk 0:01:21]}  Qxg4+ {[%clk 0:00:43]} 32. Kh2 {[%clk 0:01:19]}  Qf4+ {[%clk 0:00:41]} 33. Kg2 {[%clk 0:01:18]}  Qg4+ {[%clk 0:00:37]} 34. Kh2 {[%clk 0:01:17]}  Qf4+ {[%clk 0:00:37]} 35. Kg1 {[%clk 0:01:16]}  Qg4+ {[%clk 0:00:36]} 36. Kh2 {[%clk 0:01:12]} 1/2-1/2


[Site "https://www.chess.com"]

[Event "Titled Tuesday Blitz June 6 Early 2023"]
[White "Perske, Thore"]
[Black "Kriti Mayur Patel"]
[WhiteFideId "12902195"]
[BlackFideId "35061780"]
[WhiteElo "2336"]
[BlackElo "1306"]
[Result "1-0"]
[Round "4"]
[TimeControl "180+2"]
[Date "2023.06.06"]
[WhiteClock "0:02:19"]
[BlackClock "0:00:56"]
[Board "187"]

1. e4 {[%clk 0:03:00]}  e5 {[%clk 0:02:59]} 2. Nf3 {[%clk 0:03:00]}  Nc6 {[%clk 0:03:00]} 3. Bb5 {[%clk 0:03:00]}  Nf6 {[%clk 0:03:00]} 4. Nc3 {[%clk 0:02:58]}  a6 {[%clk 0:03:00]} 5. Ba4 {[%clk 0:02:58]}  b5 {[%clk 0:03:00]} 6. Bb3 {[%clk 0:02:58]}  Bc5 {[%clk 0:03:01]} 7. d3 {[%clk 0:02:57]}  d6 {[%clk 0:03:00]} 8. a3 {[%clk 0:02:58]}  Bg4 {[%clk 0:02:57]} 9. h3 {[%clk 0:02:58]}  Bh5 {[%clk 0:02:58]} 10. g4 {[%clk 0:02:58]}  Bg6 {[%clk 0:02:58]} 11. Bg5 {[%clk 0:02:58]}  O-O {[%clk 0:02:53]} 12. Nd5 {[%clk 0:02:57]}  a5 {[%clk 0:02:43]} 13. a4 {[%clk 0:02:57]}  b4 {[%clk 0:02:41]} 14. Qd2 {[%clk 0:02:48]}  Bd4 {[%clk 0:02:28]} 15. O-O-O {[%clk 0:02:43]}  Rb8 {[%clk 0:02:19]} 16. Nh4 {[%clk 0:02:28]}  Re8 {[%clk 0:02:11]} 17. Nf5 {[%clk 0:02:26]}  Bxf5 {[%clk 0:01:46]} 18. gxf5 {[%clk 0:02:25]}  Ba7 {[%clk 0:01:34]} 19. Rhg1 {[%clk 0:02:23]}  Kh8 {[%clk 0:01:26]} 20. Bxf6 {[%clk 0:02:23]}  gxf6 {[%clk 0:01:25]} 21. Qh6 {[%clk 0:02:23]}  Rg8 {[%clk 0:01:25]} 22. Nxf6 {[%clk 0:02:21]}  Be3+ {[%clk 0:01:00]} 23. fxe3 {[%clk 0:02:20]}  Rxg1 {[%clk 0:00:56]} 24. Qxh7# {[%clk 0:02:19]} 1-0


[Site "https://www.chess.com"]

[Event "Titled Tuesday Blitz June 6 Early 2023"]
[White "Nikulina, Alena"]
[Black "Escanor89"]
[WhiteFideId "4172051"]
[WhiteElo "1608"]
[BlackElo "2531"]
[Result "0-1"]
[Round "4"]
[TimeControl "180+2"]
[Date "2023.06.06"]
[WhiteClock "0:00:08"]
[BlackClock "0:00:31"]
[Board "188"]

1. e4 {[%clk 0:03:00]}  c5 {[%clk 0:02:59]} 2. Nf3 {[%clk 0:02:59]}  e6 {[%clk 0:02:59]} 3. d4 {[%clk 0:02:52]}  cxd4 {[%clk 0:02:59]} 4. Nxd4 {[%clk 0:02:52]}  Nf6 {[%clk 0:02:59]} 5. Nc3 {[%clk 0:02:52]}  Nc6 {[%clk 0:02:59]} 6. Nxc6 {[%clk 0:02:51]}  bxc6 {[%clk 0:02:59]} 7. e5 {[%clk 0:02:51]}  Nd5 {[%clk 0:02:59]} 8. Ne4 {[%clk 0:02:51]}  Qc7 {[%clk 0:02:59]} 9. f4 {[%clk 0:02:51]}  Qb6 {[%clk 0:02:59]} 10. c4 {[%clk 0:02:50]}  Bb4+ {[%clk 0:02:59]} 11. Ke2 {[%clk 0:02:48]}  Ba6 {[%clk 0:02:59]} 12. Kf3 {[%clk 0:02:46]}  f5 {[%clk 0:02:59]} 13. exf6 {[%clk 0:02:28]}  Nxf6 {[%clk 0:02:57]} 14. Be3 {[%clk 0:02:27]}  Qb8 {[%clk 0:02:30]} 15. a3 {[%clk 0:02:21]}  Be7 {[%clk 0:02:15]} 16. Bc5 {[%clk 0:02:00]}  Nxe4 {[%clk 0:02:09]} 17. Bxe7 {[%clk 0:01:53]}  Kxe7 {[%clk 0:02:04]} 18. Kxe4 {[%clk 0:01:53]}  Qxb2 {[%clk 0:01:58]} 19. c5 {[%clk 0:01:43]}  Bxf1 {[%clk 0:01:48]} 20. Qxf1 {[%clk 0:01:43]}  Rhf8 {[%clk 0:01:38]} 21. g3 {[%clk 0:01:33]}  Rf5 {[%clk 0:01:36]} 22. Qc4 {[%clk 0:01:08]}  Rb8 {[%clk 0:01:23]} 23. Rab1 {[%clk 0:00:59]}  Qg2+ {[%clk 0:01:22]} 24. Ke3 {[%clk 0:00:55]}  Rxb1 {[%clk 0:01:20]} 25. Rxb1 {[%clk 0:00:55]}  Rd5 {[%clk 0:01:20]} 26. Qc3 {[%clk 0:00:39]}  Kf7 {[%clk 0:01:14]} 27. Rb2 {[%clk 0:00:22]}  Qf1 {[%clk 0:00:57]} 28. Rb7 {[%clk 0:00:15]}  Qg1+ {[%clk 0:00:53]} 29. Kf3 {[%clk 0:00:15]}  Qxh2 {[%clk 0:00:46]} 30. Rxa7 {[%clk 0:00:14]}  Rd2 {[%clk 0:00:42]} 31. Qe3 {[%clk 0:00:13]}  h5 {[%clk 0:00:38]} 32. Ke4 {[%clk 0:00:08]}  Qg2+ {[%clk 0:00:31]} 33. Ke5 {[%clk 0:00:08]}  Rd5# {[%clk 0:00:31]} 0-1


[Site "https://www.chess.com"]

[Event "Titled Tuesday Blitz June 6 Early 2023"]
[White "Sokolov, Andrei"]
[Black "Cramling Bellon, Anna"]
[WhiteFideId "11600306"]
[BlackFideId "32009232"]
[WhiteElo "2473"]
[BlackElo "1976"]
[Result "0-1"]
[Round "4"]
[TimeControl "180+2"]
[Date "2023.06.06"]
[WhiteClock "0:00:05"]
[BlackClock "0:00:11"]
[Board "189"]

1. d4 {[%clk 0:02:50]}  Nf6 {[%clk 0:02:54]} 2. c4 {[%clk 0:02:50]}  e6 {[%clk 0:02:54]} 3. Nc3 {[%clk 0:02:49]}  d5 {[%clk 0:02:54]} 4. cxd5 {[%clk 0:02:14]}  exd5 {[%clk 0:02:53]} 5. Bg5 {[%clk 0:02:13]}  c6 {[%clk 0:02:52]} 6. e3 {[%clk 0:02:09]}  Be7 {[%clk 0:02:49]} 7. Bd3 {[%clk 0:02:09]}  O-O {[%clk 0:02:48]} 8. Qc2 {[%clk 0:02:08]}  Nbd7 {[%clk 0:02:46]} 9. Nge2 {[%clk 0:02:07]}  h6 {[%clk 0:02:45]} 10. Bh4 {[%clk 0:02:06]}  b6 {[%clk 0:02:40]} 11. O-O {[%clk 0:02:01]}  Bb7 {[%clk 0:02:36]} 12. f3 {[%clk 0:02:01]}  c5 {[%clk 0:02:34]} 13. dxc5 {[%clk 0:01:58]}  Nxc5 {[%clk 0:02:33]} 14. Nc1 {[%clk 0:01:51]}  d4 {[%clk 0:02:26]} 15. exd4 {[%clk 0:01:49]}  Qxd4+ {[%clk 0:02:20]} 16. Bf2 {[%clk 0:01:48]}  Qd8 {[%clk 0:02:15]} 17. Rd1 {[%clk 0:01:45]}  Nxd3 {[%clk 0:02:10]} 18. Nxd3 {[%clk 0:01:45]}  Qc7 {[%clk 0:02:06]} 19. Bg3 {[%clk 0:01:06]}  Bd6 {[%clk 0:01:45]} 20. Bxd6 {[%clk 0:01:01]}  Qxd6 {[%clk 0:01:44]} 21. Nf2 {[%clk 0:01:00]}  Qc5 {[%clk 0:01:41]} 22. Rac1 {[%clk 0:00:56]}  Rad8 {[%clk 0:01:39]} 23. Kh1 {[%clk 0:00:51]}  Qh5 {[%clk 0:01:19]} 24. Rxd8 {[%clk 0:00:38]}  Rxd8 {[%clk 0:01:19]} 25. Nce4 {[%clk 0:00:32]}  Nxe4 {[%clk 0:01:04]} 26. fxe4 {[%clk 0:00:25]}  Rc8 {[%clk 0:01:00]} 27. Qd2 {[%clk 0:00:21]}  Rxc1+ {[%clk 0:00:57]} 28. Qxc1 {[%clk 0:00:22]}  Qe2 {[%clk 0:00:51]} 29. Kg1 {[%clk 0:00:18]}  Bxe4 {[%clk 0:00:40]} 30. Nxe4 {[%clk 0:00:16]}  Qxe4 {[%clk 0:00:40]} 31. Qc8+ {[%clk 0:00:17]}  Kh7 {[%clk 0:00:40]} 32. Qa6 {[%clk 0:00:15]}  Qe3+ {[%clk 0:00:25]} 33. Kf1 {[%clk 0:00:13]}  Qc1+ {[%clk 0:00:25]} 34. Kf2 {[%clk 0:00:13]}  Qxb2+ {[%clk 0:00:25]} 35. Kg3 {[%clk 0:00:14]}  Qe5+ {[%clk 0:00:23]} 36. Kh3 {[%clk 0:00:14]}  g5 {[%clk 0:00:11]} 37. Qd3+ {[%clk 0:00:13]}  Kg7 {[%clk 0:00:09]} 38. g4 {[%clk 0:00:10]}  Qf6 {[%clk 0:00:05]} 39. Kg2 {[%clk 0:00:09]}  Qc6+ {[%clk 0:00:04]} 40. Qf3 {[%clk 0:00:08]}  Qxf3+ {[%clk 0:00:03]} 41. Kxf3 {[%clk 0:00:09]}  Kf6 {[%clk 0:00:04]} 42. Ke4 {[%clk 0:00:10]}  Ke6 {[%clk 0:00:04]} 43. a3 {[%clk 0:00:09]}  a6 {[%clk 0:00:04]} 44. a4 {[%clk 0:00:09]}  b5 {[%clk 0:00:04]} 45. axb5 {[%clk 0:00:09]}  axb5 {[%clk 0:00:04]} 46. Kd4 {[%clk 0:00:10]}  Kd6 {[%clk 0:00:04]} 47. Kc3 {[%clk 0:00:09]}  Ke5 {[%clk 0:00:04]} 48. Kb4 {[%clk 0:00:09]}  Kf4 {[%clk 0:00:05]} 49. Kxb5 {[%clk 0:00:10]}  Kxg4 {[%clk 0:00:06]} 50. Kc6 {[%clk 0:00:11]}  f5 {[%clk 0:00:06]} 51. Kd7 {[%clk 0:00:12]}  f4 {[%clk 0:00:07]} 52. Ke6 {[%clk 0:00:12]}  f3 {[%clk 0:00:07]} 53. Ke5 {[%clk 0:00:12]}  f2 {[%clk 0:00:08]} 54. Ke4 {[%clk 0:00:13]}  f1=Q {[%clk 0:00:08]} 55. Ke3 {[%clk 0:00:14]}  Kh3 {[%clk 0:00:08]} 56. Kd4 {[%clk 0:00:04]}  Kxh2 {[%clk 0:00:08]} 57. Ke5 {[%clk 0:00:03]}  g4 {[%clk 0:00:08]} 58. Ke4 {[%clk 0:00:02]}  g3 {[%clk 0:00:09]} 59. Ke3 {[%clk 0:00:03]}  g2 {[%clk 0:00:09]} 60. Ke4 {[%clk 0:00:03]}  g1=Q {[%clk 0:00:09]} 61. Ke5 {[%clk 0:00:04]}  Qgf2 {[%clk 0:00:08]} 62. Ke4 {[%clk 0:00:05]}  Q1e1+ {[%clk 0:00:09]} 63. Kd3 {[%clk 0:00:04]}  Qfd2+ {[%clk 0:00:09]} 64. Kc4 {[%clk 0:00:05]}  Qec1+ {[%clk 0:00:10]} 65. Kb3 {[%clk 0:00:05]}  Qdb2+ {[%clk 0:00:10]} 66. Ka4 {[%clk 0:00:05]}  Qca1# {[%clk 0:00:11]} 0-1


[Site "https://www.chess.com"]

[Event "Titled Tuesday Blitz June 6 Early 2023"]
[White "KSho99"]
[Black "Toncheva, Nadya"]
[BlackFideId "2924056"]
[WhiteElo "2193"]
[BlackElo "2101"]
[Result "1-0"]
[Round "4"]
[TimeControl "180+2"]
[Date "2023.06.06"]
[WhiteClock "0:00:04"]
[BlackClock "0:00:02"]
[Board "190"]

1. Nf3 {[%clk 0:03:00]}  c5 {[%clk 0:02:49]} 2. Nc3 {[%clk 0:02:58]}  Nc6 {[%clk 0:02:46]} 3. d4 {[%clk 0:02:53]}  cxd4 {[%clk 0:02:44]} 4. Nxd4 {[%clk 0:02:54]}  g6 {[%clk 0:02:45]} 5. e4 {[%clk 0:02:33]}  Bg7 {[%clk 0:02:45]} 6. Be3 {[%clk 0:02:33]}  Nf6 {[%clk 0:02:45]} 7. f3 {[%clk 0:02:28]}  O-O {[%clk 0:02:45]} 8. Qd2 {[%clk 0:02:26]}  d6 {[%clk 0:02:45]} 9. O-O-O {[%clk 0:02:21]}  d5 {[%clk 0:02:16]} 10. Nxc6 {[%clk 0:02:06]}  bxc6 {[%clk 0:02:17]} 11. e5 {[%clk 0:02:01]}  Nd7 {[%clk 0:02:13]} 12. f4 {[%clk 0:01:59]}  Nb6 {[%clk 0:02:06]} 13. h4 {[%clk 0:01:43]}  h5 {[%clk 0:02:05]} 14. Be2 {[%clk 0:01:40]}  Bf5 {[%clk 0:02:00]} 15. g4 {[%clk 0:01:11]}  hxg4 {[%clk 0:02:01]} 16. h5 {[%clk 0:01:08]}  gxh5 {[%clk 0:01:39]} 17. Rxh5 {[%clk 0:01:08]}  Bg6 {[%clk 0:01:40]} 18. Rg5 {[%clk 0:01:01]}  e6 {[%clk 0:01:33]} 19. Rxg4 {[%clk 0:00:49]}  Qe7 {[%clk 0:01:21]} 20. Rdg1 {[%clk 0:00:44]}  Nc4 {[%clk 0:01:13]} 21. Bxc4 {[%clk 0:00:41]}  dxc4 {[%clk 0:01:13]} 22. Qg2 {[%clk 0:00:29]}  Rfd8 {[%clk 0:00:54]} 23. Ne4 {[%clk 0:00:29]}  c3 {[%clk 0:00:46]} 24. Bc5 {[%clk 0:00:19]}  cxb2+ {[%clk 0:00:44]} 25. Kb1 {[%clk 0:00:19]}  Qd7 {[%clk 0:00:24]} 26. Bd6 {[%clk 0:00:11]}  c5 {[%clk 0:00:09]} 27. Rxg6 {[%clk 0:00:02]}  fxg6 {[%clk 0:00:03]} 28. Qxg6 {[%clk 0:00:02]}  Rf8 {[%clk 0:00:03]} 29. Nf6+ {[%clk 0:00:02]}  Rxf6 {[%clk 0:00:03]} 30. exf6 {[%clk 0:00:02]}  Qf7 {[%clk 0:00:02]} 31. Qxg7+ {[%clk 0:00:02]}  Qxg7 {[%clk 0:00:02]} 32. Rxg7+ {[%clk 0:00:03]}  Kh8 {[%clk 0:00:03]} 33. Rd7 {[%clk 0:00:03]}  Kg8 {[%clk 0:00:03]} 34. Be5 {[%clk 0:00:03]}  Rc8 {[%clk 0:00:02]} 35. f7+ {[%clk 0:00:03]}  Kf8 {[%clk 0:00:02]} 36. Bd6+ {[%clk 0:00:04]}  Kg7 {[%clk 0:00:02]} 37. f8=Q+ {[%clk 0:00:04]} 1-0


[Site "https://www.chess.com"]

[Event "Titled Tuesday Blitz June 6 Early 2023"]
[White "Pinales Roussel, Gabriel"]
[Black "Dwilewicz, Katarzyna"]
[WhiteFideId "3101762"]
[BlackFideId "1148486"]
[WhiteElo "2027"]
[BlackElo "2098"]
[Result "1-0"]
[Round "4"]
[TimeControl "180+2"]
[Date "2023.06.06"]
[WhiteClock "0:00:52"]
[BlackClock "0:00:02"]
[Board "192"]

1. d4 {[%clk 0:03:00]}  Nf6 {[%clk 0:02:58]} 2. c4 {[%clk 0:03:01]}  g6 {[%clk 0:02:58]} 3. Nc3 {[%clk 0:03:01]}  Bg7 {[%clk 0:02:59]} 4. e4 {[%clk 0:03:01]}  d6 {[%clk 0:02:59]} 5. h3 {[%clk 0:03:01]}  O-O {[%clk 0:02:59]} 6. Be3 {[%clk 0:03:00]}  e5 {[%clk 0:02:57]} 7. d5 {[%clk 0:02:59]}  a5 {[%clk 0:02:56]} 8. g4 {[%clk 0:02:58]}  Na6 {[%clk 0:02:56]} 9. Nge2 {[%clk 0:02:59]}  Nc5 {[%clk 0:02:56]} 10. Ng3 {[%clk 0:02:59]}  Bd7 {[%clk 0:02:46]} 11. Qd2 {[%clk 0:02:59]}  c6 {[%clk 0:02:44]} 12. f3 {[%clk 0:02:59]}  cxd5 {[%clk 0:02:43]} 13. cxd5 {[%clk 0:03:00]}  Qb8 {[%clk 0:02:24]} 14. h4 {[%clk 0:02:58]}  b5 {[%clk 0:02:20]} 15. h5 {[%clk 0:02:58]}  b4 {[%clk 0:02:19]} 16. Nd1 {[%clk 0:02:56]}  Nxg4 {[%clk 0:01:19]} 17. fxg4 {[%clk 0:02:52]}  Bxg4 {[%clk 0:01:20]} 18. Nf2 {[%clk 0:02:39]}  Bf3 {[%clk 0:01:13]} 19. Rh2 {[%clk 0:02:31]}  f5 {[%clk 0:01:13]} 20. Bxc5 {[%clk 0:01:55]}  dxc5 {[%clk 0:01:11]} 21. hxg6 {[%clk 0:01:54]}  hxg6 {[%clk 0:00:57]} 22. Qg5 {[%clk 0:01:53]}  Qd6 {[%clk 0:00:39]} 23. Be2 {[%clk 0:01:44]}  Bxe2 {[%clk 0:00:21]} 24. Nxe2 {[%clk 0:01:45]}  fxe4 {[%clk 0:00:19]} 25. Nxe4 {[%clk 0:01:44]}  Qxd5 {[%clk 0:00:18]} 26. Qxg6 {[%clk 0:01:41]}  Rf3 {[%clk 0:00:10]} 27. Rg2 {[%clk 0:01:24]}  Qf7 {[%clk 0:00:09]} 28. Qxf7+ {[%clk 0:01:12]}  Rxf7 {[%clk 0:00:10]} 29. Nxc5 {[%clk 0:01:11]}  Rd8 {[%clk 0:00:06]} 30. Ne6 {[%clk 0:01:08]}  Rd3 {[%clk 0:00:06]} 31. Nxg7 {[%clk 0:01:08]}  Rxg7 {[%clk 0:00:06]} 32. Rxg7+ {[%clk 0:01:08]}  Kxg7 {[%clk 0:00:07]} 33. Rd1 {[%clk 0:01:08]}  Rh3 {[%clk 0:00:06]} 34. Rd5 {[%clk 0:01:04]}  Kf6 {[%clk 0:00:05]} 35. Rxa5 {[%clk 0:01:04]}  Rh1+ {[%clk 0:00:06]} 36. Kd2 {[%clk 0:01:04]}  Rb1 {[%clk 0:00:06]} 37. Kc2 {[%clk 0:01:03]}  Re1 {[%clk 0:00:07]} 38. Nc1 {[%clk 0:01:01]}  e4 {[%clk 0:00:06]} 39. Rb5 {[%clk 0:01:00]}  e3 {[%clk 0:00:06]} 40. Rxb4 {[%clk 0:01:00]}  Kf5 {[%clk 0:00:04]} 41. a4 {[%clk 0:00:56]}  e2 {[%clk 0:00:04]} 42. Nxe2 {[%clk 0:00:55]}  Rxe2+ {[%clk 0:00:04]} 43. Kc3 {[%clk 0:00:54]}  Ke6 {[%clk 0:00:03]} 44. Rd4 {[%clk 0:00:52]}  Re5 {[%clk 0:00:02]} 45. b4 {[%clk 0:00:52]} 1-0


[Site "https://www.chess.com"]

[Event "Titled Tuesday Blitz June 6 Early 2023"]
[White "Sargissyan, Sargis"]
[Black "Francisco_Ferrari"]
[WhiteFideId "13303210"]
[WhiteElo "2109"]
[BlackElo "2136"]
[Result "1-0"]
[Round "4"]
[TimeControl "180+2"]
[Date "2023.06.06"]
[WhiteClock "0:02:11"]
[BlackClock "0:00:42"]
[Board "193"]

1. e4 {[%clk 0:03:00]}  e5 {[%clk 0:02:58]} 2. Nf3 {[%clk 0:03:00]}  Nc6 {[%clk 0:02:58]} 3. Bb5 {[%clk 0:03:01]}  Nf6 {[%clk 0:02:58]} 4. d3 {[%clk 0:03:01]}  d6 {[%clk 0:02:56]} 5. c3 {[%clk 0:03:00]}  Be7 {[%clk 0:02:55]} 6. O-O {[%clk 0:03:00]}  O-O {[%clk 0:02:56]} 7. Re1 {[%clk 0:03:01]}  h6 {[%clk 0:02:51]} 8. Nbd2 {[%clk 0:02:59]}  Re8 {[%clk 0:02:51]} 9. Nf1 {[%clk 0:02:59]}  Bf8 {[%clk 0:02:49]} 10. Ng3 {[%clk 0:03:00]}  a6 {[%clk 0:02:48]} 11. Bxc6 {[%clk 0:02:57]}  bxc6 {[%clk 0:02:49]} 12. d4 {[%clk 0:02:57]}  Bg4 {[%clk 0:02:32]} 13. h3 {[%clk 0:02:57]}  Bc8 {[%clk 0:02:11]} 14. dxe5 {[%clk 0:02:51]}  dxe5 {[%clk 0:02:06]} 15. Qxd8 {[%clk 0:02:52]}  Rxd8 {[%clk 0:02:06]} 16. Nxe5 {[%clk 0:02:53]}  Bb7 {[%clk 0:02:03]} 17. Bf4 {[%clk 0:02:48]}  c5 {[%clk 0:01:52]} 18. Nc4 {[%clk 0:02:47]}  Re8 {[%clk 0:01:44]} 19. f3 {[%clk 0:02:45]}  Rac8 {[%clk 0:01:36]} 20. Rad1 {[%clk 0:02:38]}  Bc6 {[%clk 0:01:33]} 21. Nf5 {[%clk 0:02:30]}  Bb5 {[%clk 0:01:21]} 22. Na5 {[%clk 0:02:30]}  Rcd8 {[%clk 0:01:01]} 23. Bxc7 {[%clk 0:02:28]}  Rc8 {[%clk 0:00:58]} 24. Bf4 {[%clk 0:02:24]}  Nh5 {[%clk 0:00:49]} 25. Be3 {[%clk 0:02:19]}  Rcd8 {[%clk 0:00:45]} 26. c4 {[%clk 0:02:17]}  Bd7 {[%clk 0:00:42]} 27. Nb7 {[%clk 0:02:11]} 1-0


[Site "https://www.chess.com"]

[Event "Titled Tuesday Blitz June 6 Early 2023"]
[White "campochess"]
[Black "Joshi, Pankaj"]
[BlackFideId "5006210"]
[WhiteElo "2136"]
[BlackElo "2354"]
[Result "1-0"]
[Round "4"]
[TimeControl "180+2"]
[Date "2023.06.06"]
[WhiteClock "0:01:01"]
[BlackClock "0:00:10"]
[Board "194"]

1. d4 {[%clk 0:02:49]}  c5 {[%clk 0:02:54]} 2. d5 {[%clk 0:02:47]}  e5 {[%clk 0:02:54]} 3. e4 {[%clk 0:02:47]}  d6 {[%clk 0:02:53]} 4. Nc3 {[%clk 0:02:47]}  Be7 {[%clk 0:02:51]} 5. f4 {[%clk 0:02:47]}  exf4 {[%clk 0:02:43]} 6. Bxf4 {[%clk 0:02:46]}  Bg5 {[%clk 0:02:43]} 7. Bxg5 {[%clk 0:02:42]}  Qxg5 {[%clk 0:02:44]} 8. Nf3 {[%clk 0:02:43]}  Qe7 {[%clk 0:02:43]} 9. Be2 {[%clk 0:02:41]}  Nd7 {[%clk 0:02:41]} 10. O-O {[%clk 0:02:41]}  Ngf6 {[%clk 0:02:41]} 11. Nd2 {[%clk 0:02:39]}  O-O {[%clk 0:02:39]} 12. Qe1 {[%clk 0:02:35]}  Ne5 {[%clk 0:02:37]} 13. Qg3 {[%clk 0:02:33]}  a6 {[%clk 0:02:34]} 14. a4 {[%clk 0:02:31]}  Bd7 {[%clk 0:02:19]} 15. Rf4 {[%clk 0:02:29]}  b5 {[%clk 0:02:04]} 16. axb5 {[%clk 0:02:28]}  axb5 {[%clk 0:02:05]} 17. Raf1 {[%clk 0:02:27]}  Ng6 {[%clk 0:01:56]} 18. R4f2 {[%clk 0:02:22]}  b4 {[%clk 0:01:54]} 19. Nd1 {[%clk 0:02:10]}  Ra1 {[%clk 0:01:43]} 20. Ne3 {[%clk 0:01:51]}  Rxf1+ {[%clk 0:01:25]} 21. Rxf1 {[%clk 0:01:48]}  Nxe4 {[%clk 0:01:03]} 22. Nxe4 {[%clk 0:01:47]}  Qxe4 {[%clk 0:01:03]} 23. Bd3 {[%clk 0:01:43]}  Qe7 {[%clk 0:01:03]} 24. Nc4 {[%clk 0:01:40]}  Ne5 {[%clk 0:00:39]} 25. Re1 {[%clk 0:01:26]}  Qf6 {[%clk 0:00:27]} 26. Nxd6 {[%clk 0:01:17]}  Nxd3 {[%clk 0:00:21]} 27. cxd3 {[%clk 0:01:15]}  Qd4+ {[%clk 0:00:19]} 28. Kh1 {[%clk 0:01:13]}  Qxd5 {[%clk 0:00:17]} 29. Ne4 {[%clk 0:01:06]}  Bc6 {[%clk 0:00:14]} 30. Nf6+ {[%clk 0:01:05]}  Kh8 {[%clk 0:00:11]} 31. Nxd5 {[%clk 0:01:05]}  Bxd5 {[%clk 0:00:12]} 32. Qd6 {[%clk 0:01:04]}  Re8 {[%clk 0:00:10]} 33. Rxe8# {[%clk 0:01:01]} 1-0


[Site "https://www.chess.com"]